fUSD/lending_fUSD_20260314
["ID","MTS","AMOUNT","RATE_DAILY","PERIOD"]
[408364574,1773496265720,-500.0,0.00049899,120]
[408364575,1773496265730,-151.0,0.00049899,120]
[408364576,1773496265740,-500.0,0.00049899,120]
[408364577,1773496265750,-500.0,0.00049899,120]
[408364578,1773496265760,-151.0,0.00049899,120]
[408364579,1773496265771,-153.89050446,0.00049899,120]
[408364580,1773496265780,-151.0,0.00049899,120]
[408364581,1773496265790,-151.0,0.00049899,120]
[408364582,1773496265922,-234.83493375,0.00049899,120]
[408364583,1773496265931,-1065.58059639,0.000499,120]
[408364584,1773496265941,-596083.43207381,0.000499,120]
[408364585,1773496265951,-30305.23222309,0.000499,120]
[408364586,1773496265961,-155.80139276,0.000499,30]
[408364587,1773496265971,-5000.0,0.000499,120]
[408364588,1773496265981,-180158.273881,0.000499,30]
[408364589,1773496265991,-242857.54846012,0.000499,120]
[408364590,1773496266001,-5000000.0,0.000499,120]
[408364591,1773496266011,-5000000.0,0.000499,120]
[408364592,1773496266021,-5000000.0,0.000499,120]
[408364593,1773496266031,-153.56106977,0.000499,120]
[408364594,1773496266041,-11105.43326512,0.000499,120]
[408364595,1773496266051,-571.58170371,0.000499,30]
[408364596,1773496266061,-177.71423198,0.000499,30]
[408364597,1773496266070,-1170.94457622,0.000499,30]
[408364598,1773496266080,-2079.8504071,0.00049947,77]
[408364599,1773496266090,-250.0,0.0004997,3]
[408364600,1773496266099,-250.0,0.0004997,3]
[408364601,1773496266109,-205.26,0.00049972,2]
[408364602,1773496266118,-500000.0,0.0004999,90]
[408364603,1773496266127,-3799.23906245,0.00049994,45]
[408364604,1773496266137,-15421.4648609,0.00049999,120]
[408364605,1773496266147,-156.67576507,0.00049999,120]
[408364606,1773496266161,-500.0,0.00049999,120]
[408364607,1773496266170,-1000.0,0.00049999,120]
[408364608,1773496266179,-5244.10364383,0.0005,120]
[408364609,1773496266189,-1510045.75832063,0.0005,109]
[408364610,1773496266199,-150.0,0.0005,40]
[408364611,1773496266208,-10000.0,0.0005,120]
[408364612,1773496266218,-3000000.0,0.0005,120]
[408364613,1773496266227,-3000000.0,0.0005,120]
[408364614,1773496266237,-3000000.0,0.0005,120]
[408364615,1773496266246,-3000000.0,0.0005,120]
[408364616,1773496266255,-3000000.0,0.0005,120]
[408364617,1773496266265,-3000000.0,0.0005,120]
[408364618,1773496266275,-3000000.0,0.0005,120]
[408364619,1773496266284,-3000000.0,0.0005,120]
[408364620,1773496266293,-2900000.0,0.0005,115]
[408364621,1773496266302,-2000000.0,0.0005,67]
[408364622,1773496266312,-2000000.0,0.0005,68]
[408364623,1773496266321,-2000000.0,0.0005,68]
[408364624,1773496266330,-2000000.0,0.0005,69]
[408364625,1773496266339,-2000000.0,0.0005,62]
[408364626,1773496266348,-2000000.0,0.0005,62]
[408364627,1773496266357,-2000000.0,0.0005,60]
[408364628,1773496266366,-655.768231,0.0005,120]
[408364629,1773496266375,-2000000.0,0.0005,86]
[408364630,1773496266384,-2210000.0,0.0005,87]
[408364631,1773496266393,-2000000.0,0.0005,81]
[408364632,1773496266403,-2000000.0,0.0005,82]
[408364633,1773496266412,-2000000.0,0.0005,83]
[408364634,1773496266422,-2000000.0,0.0005,84]
[408364635,1773496266431,-2723000.0,0.0005,120]
[408364636,1773496266441,-3000000.0,0.0005,120]
[408364637,1773496266451,-3000000.0,0.0005,120]
[408364638,1773496266460,-2000000.0,0.0005,59]
[408364639,1773496266470,-2000000.0,0.0005,59]
[408364640,1773496266480,-2000000.0,0.0005,61]
[408364641,1773496266490,-2000000.0,0.0005,64]
[408364642,1773496266500,-2000000.0,0.0005,65]
[408364643,1773496266510,-2000000.0,0.0005,66]
[408364644,1773496266520,-1572203.69527331,0.0005,69]
[408364645,1773496266644,-300.0,0.0004282,2]
[408364646,1773496266654,-259.01799888,0.0005,69]
[408364657,1773496637760,944.99,0.0002,120]
[408364669,1773497014818,1089.93,0.0001425,2]
[408364708,1773497431564,-250.0,0.00015,2]
[408364709,1773497431574,-600.0,0.000156,2]
[408364710,1773497431584,-829.38668649,0.000162,5]
[408364711,1773497431593,-600.0,0.000165,2]
[408364712,1773497431603,-600.0,0.00016505,2]
[408364713,1773497431612,-1695.98337633,0.00016823,2]
[408364714,1773497431622,-506.0,0.00017,2]
[408364715,1773497431632,-618.24950115,0.000175,2]
[408364716,1773497431641,-300.0,0.00017532,2]
[408364717,1773497431651,-1200.0,0.00017532,2]
[408364718,1773497431660,-2500.0,0.00017533,2]
[408364719,1773497431670,-1913.01024474,0.00017533,2]
[408364720,1773497431680,-168.77635389,0.00017533,2]
[408364721,1773497431689,-4195.1423282,0.00017533,2]
[408364722,1773497431699,-151.0,0.00017622,2]
[408364723,1773497431709,-235.0,0.0001763,2]
[408364724,1773497431718,-500.0,0.00017632,2]
[408364725,1773497431728,-444.93533792,0.00017632,2]
[408364726,1773497431738,-500.0,0.00017632,2]
[408364727,1773497431747,-500.0,0.00017632,2]
[408364728,1773497431756,-500.0,0.00017632,2]
[408364729,1773497431765,-500.0,0.00017632,2]
[408364730,1773497431774,-500.0,0.00017632,2]
[408364731,1773497431783,-500.0,0.00017632,2]
[408364732,1773497431792,-500.0,0.00017632,2]
[408364733,1773497431801,-500.0,0.00017632,2]
[408364734,1773497431811,-500.0,0.00017632,2]
[408364735,1773497431820,-500.0,0.00017632,2]
[408364736,1773497431830,-500.0,0.00017632,2]
[408364737,1773497431841,-500.0,0.00017632,2]
[408364738,1773497431851,-500.0,0.00017632,2]
[408364739,1773497431860,-500.0,0.00017632,2]
[408364740,1773497431870,-500.0,0.00017632,2]
[408364741,1773497431879,-500.0,0.00017632,2]
[408364742,1773497431891,-482.45556555,0.00017632,2]
[408364743,1773497431900,-500.0,0.00017632,2]
[408364744,1773497431910,-500.0,0.00017632,2]
[408364745,1773497431919,-500.0,0.00017632,2]
[408364746,1773497431929,-500.0,0.00017632,2]
[408364747,1773497431938,-500.0,0.00017632,2]
[408364748,1773497431947,-500.0,0.00017632,2]
[408364749,1773497431956,-500.0,0.00017632,2]
[408364750,1773497431965,-500.0,0.00017632,2]
[408364751,1773497431974,-500.0,0.00017632,2]
[408364752,1773497431983,-500.0,0.00017632,2]
[408364753,1773497431992,-500.0,0.00017632,2]
[408364754,1773497432002,-500.0,0.00017632,2]
[408364755,1773497432011,-500.0,0.00017632,2]
[408364756,1773497432021,-500.0,0.00017632,2]
[408364757,1773497432030,-500.0,0.00017632,2]
[408364758,1773497432040,-422.03014467,0.00017632,2]
[408364759,1773497432049,-500.0,0.00017632,2]
[408364760,1773497432059,-500.0,0.00017632,2]
[408364761,1773497432069,-601.03323842,0.00017632,2]
[408364762,1773497432078,-500.0,0.00017632,2]
[408364763,1773497432088,-500.0,0.00017632,2]
[408364764,1773497432098,-500.0,0.00017632,2]
[408364765,1773497432107,-500.0,0.00017632,2]
[408364766,1773497432116,-500.0,0.00017632,2]
[408364767,1773497432125,-500.0,0.00017632,2]
[408364768,1773497432135,-500.0,0.00017632,2]
[408364769,1773497432144,-500.0,0.00017632,2]
[408364770,1773497432153,-500.0,0.00017632,2]
[408364771,1773497432163,-500.0,0.00017632,2]
[408364772,1773497432172,-350.0,0.00017632,2]
[408364773,1773497432181,-500.0,0.00017632,2]
[408364774,1773497432191,-500.0,0.00017632,2]
[408364775,1773497432201,-269.2576096,0.00017632,2]
[408364776,1773497432211,-166.50063118,0.00017632,2]
[408364777,1773497432220,-336.16601881,0.00017632,2]
[408364778,1773497432230,-186.42721487,0.00017632,2]
[408364779,1773497432243,-72.15091104,0.00017632,2]
[408364780,1773497432253,-283.05226714,0.00017632,2]
[408364781,1773497432266,-731.8971,0.00017633,2]
[408364782,1773497432276,-191856.40378363,0.00017633,2]
[408364783,1773497432287,-20071.73877494,0.00017633,2]
[408364784,1773497432298,-5409.13408444,0.00017633,2]
[408364785,1773497432310,-6360.09311343,0.00017633,2]
[408364786,1773497432320,-7288.52656523,0.00017633,2]
[408364795,1773497437531,-7186.8386535,0.00017633,2]
[408364796,1773497437645,-1466.38808259,0.00017633,2]
[408364841,1773497439813,-800.0,0.00017633,2]
[408364852,1773497442584,-655.36256464,0.00017633,2]
[408364853,1773497442802,-756.77100593,0.00017633,2]
[408364854,1773497442817,-5390.78431628,0.00017633,2]
[408364857,1773497445773,-8466.88757668,0.00017633,2]
[408364871,1773497817749,153.14,8.484e-05,2]
[408364872,1773497817978,153.14,9.898e-05,2]
[408364873,1773497818348,153.14,0.00011312,2]
[408364874,1773497818560,153.14,0.00012726,2]
[408364875,1773497818977,153.14,0.0001414,2]
[408364917,1773498631629,-153.14,0.00015554,2]
[408364918,1773498631639,-250.0,0.00015557,2]
[408364919,1773498631648,-276.01366804,0.00015561,2]
[408364920,1773498631657,-166.66,0.0001562,2]
[408364921,1773498631666,-250.0,0.00015671,2]
[408364922,1773498631675,-588.44469547,0.00015733,2]
[408364923,1773498631686,-1500.0,0.00015885,2]
[408364924,1773498631695,-248.64,0.00015903,2]
[408364925,1773498631704,-166.66,0.00015949,2]
[408364926,1773498631712,-1227.59,0.00016018,2]
[408364927,1773498631721,-169.67,0.00016231,2]
[408364928,1773498631730,-166.66,0.00016278,2]
[408364929,1773498631739,-383.66982029,0.00016337,2]
[408364930,1773498631748,-273.71330358,0.00016373,2]
[408364931,1773498631757,-1200.0,0.00016402,2]
[408364932,1773498631766,-1507.0,0.00016403,2]
[408364933,1773498631774,-549.0,0.00016435,2]
[408364934,1773498631783,-150.0,0.00016438,2]
[408364935,1773498631794,-278.47389367,0.0001648,2]
[408364936,1773498631806,-411.52610633,0.0001648,2]
[408364937,1773498631815,-206.0,0.00016494,2]
[408364938,1773498631825,-150.0,0.00016501,2]
[408364939,1773498631834,-300.0,0.00016512,2]
[408364940,1773498631843,-300.0,0.00016512,2]
[408364941,1773498631852,-1562.0,0.00016513,2]
[408364942,1773498631861,-1615.0,0.00016546,2]
[408364943,1773498631869,-166.66,0.00016607,2]
[408364944,1773498631878,-3240.0,0.00016801,2]
[408364945,1773498631887,-166.66,0.00016936,2]
[408364946,1773498631897,-153.14,0.00016968,2]
[408364947,1773498631906,-507.0,0.00017,2]
[408364948,1773498631919,-178.0,0.00017009,2]
[408364949,1773498631928,-350.0,0.00017009,2]
[408364950,1773498631941,-300.0,0.00017109,2]
[408364951,1773498631951,-250.0,0.00017109,2]
[408364952,1773498631960,-1093.91547196,0.00017155,2]
[408364954,1773498631970,-2424.8966,0.0001718,2]
[408364956,1773498631979,-166.66,0.00017265,2]
[408364958,1773498631990,-168.77635389,0.00017333,2]
[408364960,1773498631999,-3775.62809538,0.00017333,2]
[408364961,1773498632010,-869.0,0.00017403,2]
[408364962,1773498632022,-255.0,0.0001741,2]
[408364963,1773498632031,-195.30337651,0.00017423,2]
[408364964,1773498632041,-500.0,0.00017432,2]
[408364965,1773498632050,-500.0,0.00017432,2]
[408364966,1773498632060,-500.0,0.00017432,2]
[408364967,1773498632069,-56.84135103,0.00017433,2]
[408364968,1773498632081,-110510.43783611,0.00017433,2]
[408364969,1773498632092,-15752.68740358,0.00017433,2]
[408364970,1773498632103,-11984.72248105,0.00017433,2]
[408364971,1773498632115,-7514.95875997,0.00017433,2]
[408364972,1773498632126,-351.5299975,0.00017433,2]
[408364978,1773498637748,-62659.60666297,0.00017433,2]
[408365042,1773498639933,-347.053942,0.00017433,2]
[408365043,1773498639944,-19415.33200003,0.00017433,2]
[408365044,1773498639955,-1616.64725873,0.00017433,2]
[408365045,1773498639967,-1135.96567531,0.00017433,2]
[408365046,1773498640004,-64673.67286064,0.00017433,2]
[408365047,1773498640343,-2086.83914292,0.00017433,2]
[408365054,1773498642803,-4051.58577808,0.00017433,2]
[408365055,1773498643028,-1908.95357177,0.00017433,2]
[408365069,1773498645853,-374.4298483,0.00017333,2]
[408365070,1773498645863,-7255.08256776,0.00017433,2]
[408365071,1773498645874,-494.61771879,0.00017433,2]
[408365072,1773498645968,-651.98542784,0.00017433,2]
[408365073,1773498645978,-9015.31342312,0.00017433,2]
[408365079,1773498672652,570.61,0.00014182,2]
[408365100,1773499449609,600.61,0.0001425,2]
[408365124,1773499831874,-2000.0,0.00016119,2]
[408365125,1773499831883,-185.08,0.00016181,2]
[408365126,1773499831893,-250.0,0.00016222,2]
[408365127,1773499831903,-199.11454615,0.00016264,2]
[408365128,1773499831912,-250.0,0.00016298,2]
[408365129,1773499831922,-1480.67,0.00016315,2]
[408365130,1773499831931,-180.0,0.00016364,2]
[408365131,1773499831941,-1200.0,0.00016364,2]
[408365132,1773499831950,-300.0,0.00016364,2]
[408365133,1773499831960,-300.0,0.00016364,2]
[408365134,1773499831970,-12433.67,0.00016365,2]
[408365135,1773499831979,-150.0,0.00016438,2]
[408365136,1773499831989,-500.0,0.00016455,2]
[408365137,1773499831999,-1863.57,0.00016458,2]
[408365138,1773499832008,-800.0,0.000167,6]
[408365139,1773499832018,-1600.0,0.000168,6]
[408365140,1773499832028,-1042.0,0.00016855,2]
[408365141,1773499832037,-2400.0,0.000169,6]
[408365143,1773499832047,-150.0,0.00016984,2]
[408365144,1773499832056,-150.0,0.00017,2]
[408365146,1773499832065,-507.0,0.00017,2]
[408365148,1773499832074,-167.89,0.00017015,2]
[408365150,1773499832083,-167.89,0.00017015,2]
[408365152,1773499832093,-167.89,0.00017015,2]
[408365154,1773499832102,-167.89,0.00017015,2]
[408365156,1773499832111,-1461.48110588,0.00017059,2]
[408365158,1773499832120,-617.37656424,0.00017059,2]
[408365160,1773499832130,-675.0,0.00017107,2]
[408365162,1773499832139,-199.11454615,0.00017122,2]
[408365164,1773499832148,-2351.3194605,0.00017123,2]
[408365166,1773499832157,-3398.06528577,0.00017123,2]
[408365168,1773499832166,-886.57936646,0.00017123,2]
[408365170,1773499832175,-715.0,0.00017127,2]
[408365172,1773499832184,-550.0,0.00017221,2]
[408365174,1773499832194,-500.0,0.00017222,2]
[408365176,1773499832203,-500.0,0.00017222,2]
[408365178,1773499832212,-476.29116327,0.00017222,2]
[408365180,1773499832221,-500.0,0.00017222,2]
[408365182,1773499832231,-500.0,0.00017222,2]
[408365184,1773499832242,-500.0,0.00017222,2]
[408365186,1773499832254,-500.0,0.00017222,2]
[408365188,1773499832263,-500.0,0.00017222,2]
[408365190,1773499832272,-635.45179764,0.00017222,2]
[408365192,1773499832283,-500.0,0.00017222,2]
[408365194,1773499832292,-500.0,0.00017222,2]
[408365196,1773499832301,-216.42702423,0.00017222,2]
[408365198,1773499832310,-500.0,0.00017222,2]
[408365200,1773499832321,-500.0,0.00017222,2]
[408365202,1773499832330,-500.0,0.00017222,2]
[408365204,1773499832340,-500.0,0.00017222,2]
[408365206,1773499832350,-500.0,0.00017222,2]
[408365208,1773499832359,-178.46475675,0.00017222,2]
[408365210,1773499832369,-500.0,0.00017222,2]
[408365212,1773499832378,-500.0,0.00017222,2]
[408365214,1773499832388,-222.94475239,0.00017222,2]
[408365216,1773499832396,-500.0,0.00017222,2]
[408365218,1773499832406,-500.0,0.00017222,2]
[408365220,1773499832415,-500.0,0.00017222,2]
[408365222,1773499832425,-636.50360686,0.00017222,2]
[408365224,1773499832435,-500.0,0.00017222,2]
[408365226,1773499832444,-500.0,0.00017222,2]
[408365228,1773499832453,-500.0,0.00017222,2]
[408365230,1773499832462,-498.50568057,0.00017222,2]
[408365232,1773499832471,-500.0,0.00017222,2]
[408365234,1773499832480,-500.0,0.00017222,2]
[408365236,1773499832489,-500.0,0.00017222,2]
[408365238,1773499832498,-507.17926616,0.00017222,2]
[408365240,1773499832507,-500.0,0.00017222,2]
[408365242,1773499832518,-500.0,0.00017222,2]
[408365244,1773499832528,-500.0,0.00017222,2]
[408365246,1773499832538,-500.0,0.00017222,2]
[408365247,1773499832547,-500.0,0.00017222,2]
[408365249,1773499832556,-500.0,0.00017222,2]
[408365251,1773499832565,-500.0,0.00017222,2]
[408365258,1773499832731,-303.87644512,0.00017222,2]
[408365259,1773499832741,-500.0,0.00017222,2]
[408365260,1773499832751,-347.07248994,0.00017222,2]
[408365261,1773499832760,-500.0,0.00017222,2]
[408365262,1773499832770,-500.0,0.00017222,2]
[408365263,1773499832779,-500.0,0.00017222,2]
[408365264,1773499832788,-500.0,0.00017222,2]
[408365265,1773499832798,-500.0,0.00017222,2]
[408365266,1773499832807,-500.0,0.00017222,2]
[408365267,1773499832816,-292.7233638,0.00017222,2]
[408365268,1773499832826,-594.48281988,0.00017222,2]
[408365269,1773499832835,-500.0,0.00017222,2]
[408365270,1773499832845,-500.0,0.00017222,2]
[408365271,1773499832854,-500.0,0.00017222,2]
[408365272,1773499832864,-350.0,0.00017222,2]
[408365273,1773499832873,-500.0,0.00017222,2]
[408365274,1773499832882,-500.0,0.00017222,2]
[408365275,1773499832891,-500.0,0.00017222,2]
[408365276,1773499832901,-500.0,0.00017222,2]
[408365277,1773499832910,-500.54575867,0.00017222,2]
[408365278,1773499832919,-500.0,0.00017222,2]
[408365279,1773499832929,-500.0,0.00017222,2]
[408365280,1773499832938,-39.7732462,0.00017222,2]
[408365281,1773499832951,-460.2267538,0.00017222,2]
[408365282,1773499832960,-500.0,0.00017222,2]
[408365283,1773499832969,-500.0,0.00017222,2]
[408365284,1773499832978,-500.0,0.00017222,2]
[408365285,1773499832987,-500.0,0.00017222,2]
[408365286,1773499832997,-500.0,0.00017222,2]
[408365287,1773499833006,-500.0,0.00017222,2]
[408365288,1773499833015,-500.0,0.00017222,2]
[408365289,1773499833024,-500.0,0.00017222,2]
[408365290,1773499833034,-500.0,0.00017222,2]
[408365291,1773499833043,-500.0,0.00017222,2]
[408365292,1773499833052,-500.0,0.00017222,2]
[408365293,1773499833062,-500.0,0.00017222,2]
[408365294,1773499833071,-500.0,0.00017222,2]
[408365295,1773499833080,-500.0,0.00017222,2]
[408365296,1773499833089,-365.3838588,0.00017222,2]
[408365297,1773499833099,-500.0,0.00017222,2]
[408365298,1773499833108,-365.3838588,0.00017222,2]
[408365299,1773499833118,-365.3838588,0.00017222,2]
[408365300,1773499833127,-500.0,0.00017222,2]
[408365301,1773499833136,-500.0,0.00017222,2]
[408365302,1773499833146,-500.0,0.00017222,2]
[408365303,1773499833154,-365.3838588,0.00017222,2]
[408365304,1773499833163,-500.0,0.00017222,2]
[408365305,1773499833173,-365.3838588,0.00017222,2]
[408365306,1773499833182,-500.0,0.00017222,2]
[408365307,1773499833191,-500.0,0.00017222,2]
[408365308,1773499833200,-365.3838588,0.00017222,2]
[408365309,1773499833210,-500.0,0.00017222,2]
[408365310,1773499833219,-365.3838588,0.00017222,2]
[408365311,1773499833228,-500.0,0.00017222,2]
[408365312,1773499833237,-365.3838588,0.00017222,2]
[408365313,1773499833249,-500.0,0.00017222,2]
[408365314,1773499833259,-365.3838588,0.00017222,2]
[408365315,1773499833268,-500.0,0.00017222,2]
[408365316,1773499833278,-365.3838588,0.00017222,2]
[408365317,1773499833288,-500.0,0.00017222,2]
[408365318,1773499833298,-38.60411772,0.00017222,2]
[408365319,1773499833310,-326.77974108,0.00017222,2]
[408365320,1773499833320,-500.0,0.00017222,2]
[408365321,1773499833329,-365.3838588,0.00017222,2]
[408365322,1773499833339,-500.0,0.00017222,2]
[408365323,1773499833348,-365.3838588,0.00017222,2]
[408365324,1773499833358,-500.0,0.00017222,2]
[408365325,1773499833367,-365.3838588,0.00017222,2]
[408365326,1773499833376,-500.0,0.00017222,2]
[408365327,1773499833385,-365.3838588,0.00017222,2]
[408365328,1773499833395,-500.0,0.00017222,2]
[408365329,1773499833406,-365.3838588,0.00017222,2]
[408365330,1773499833416,-500.0,0.00017222,2]
[408365331,1773499833425,-500.0,0.00017222,2]
[408365332,1773499833435,-500.0,0.00017222,2]
[408365333,1773499833444,-500.0,0.00017222,2]
[408365334,1773499833454,-500.0,0.00017222,2]
[408365335,1773499833463,-500.0,0.00017222,2]
[408365336,1773499833472,-500.0,0.00017222,2]
[408365337,1773499833481,-500.0,0.00017222,2]
[408365338,1773499833491,-500.0,0.00017222,2]
[408365339,1773499833501,-500.0,0.00017222,2]
[408365340,1773499833510,-500.0,0.00017222,2]
[408365341,1773499833520,-500.0,0.00017222,2]
[408365342,1773499833530,-44069.250644,0.00017223,2]
[408365343,1773499833542,-20860.62315302,0.00017223,2]
[408365344,1773499833553,-1054.31775757,0.00017223,2]
[408365345,1773499833569,-596.61311656,0.00017223,2]
[408365346,1773499833580,-603.84235597,0.00017223,2]
[408365347,1773499833591,-662.72173973,0.00017223,2]
[408365348,1773499833610,-478.50807902,0.00017223,2]
[408365349,1773499833623,-134635.96102339,0.00017223,2]
[408365350,1773499833635,-3904.47098206,0.00017223,2]
[408365396,1773499840110,-705.32,0.00017223,2]
[408365448,1773500111749,2348.76088406,0.00015,120]
[408365461,1773500555653,162.52,7.875e-05,2]
[408365462,1773500555853,162.52,0.00011813,2]
[408365491,1773501031987,-166.66,0.00014704,2]
[408365492,1773501031998,-480.10991584,0.00014778,2]
[408365493,1773501032011,-119.89008416,0.00014778,2]
[408365494,1773501032020,-250.0,0.00014852,2]
[408365495,1773501032029,-300.0,0.00014852,2]
[408365496,1773501032039,-503.31767503,0.00014852,2]
[408365497,1773501032049,-257.97982317,0.00014947,2]
[408365498,1773501032059,-250.0,0.00015,2]
[408365499,1773501032068,-166.66,0.00015013,2]
[408365500,1773501032077,-166.66,0.00015323,2]
[408365501,1773501032087,-458.38548747,0.00015375,2]
[408365502,1773501032099,-114.40485817,0.00015375,2]
[408365503,1773501032108,-486.85794013,0.00015436,2]
[408365504,1773501032120,-1013.14205987,0.00015436,2]
[408365505,1773501032129,-96.10525306,0.00015465,2]
[408365506,1773501032140,-103.89474694,0.00015465,2]
[408365507,1773501032150,-583.10525306,0.00015471,2]
[408365508,1773501032161,-228.55474694,0.00015471,2]
[408365509,1773501032172,-150.0,0.00015553,2]
[408365510,1773501032181,-166.66,0.00015632,2]
[408365511,1773501032191,-300.0,0.00015722,2]
[408365513,1773501032205,-1200.0,0.00015722,2]
[408365514,1773501032214,-1200.0,0.00015723,2]
[408365515,1773501032224,-232.690996,0.00015723,2]
[408365516,1773501032235,-67.309004,0.00015723,2]
[408365517,1773501032245,-300.0,0.00015723,2]
[408365518,1773501032254,-300.0,0.00015723,2]
[408365519,1773501032263,-5459.918996,0.00015726,2]
[408365523,1773501032291,-2348.76088406,0.00015726,2]
[408365526,1773501032303,-1421.96416629,0.00015726,2]
[408365528,1773501032314,-2095.38,0.00015726,2]
[408365530,1773501032325,-1007.60238667,0.00015726,2]
[408365532,1773501032335,-1207.86,0.0001575,2]
[408365534,1773501032344,-162.52,0.0001575,2]
[408365536,1773501032354,-1852.42,0.0001577,2]
[408365538,1773501032363,-994.61,0.00015914,2]
[408365540,1773501032372,-166.66,0.00015942,2]
[408365542,1773501032381,-387.5422,0.00016019,2]
[408365544,1773501032391,-241.63,0.00016098,2]
[408365546,1773501032400,-3240.0,0.00016136,2]
[408365548,1773501032409,-200.0,0.00016136,2]
[408365550,1773501032418,-250.0,0.00016174,2]
[408365552,1773501032428,-300.0,0.00016174,2]
[408365554,1773501032437,-500.0,0.00016174,2]
[408365556,1773501032446,-600.0,0.00016174,2]
[408365557,1773501032455,-195.18713969,0.00016174,2]
[408365559,1773501032465,-8001.71846489,0.0001619,2]
[408365561,1773501032474,-1560.01,0.000162,5]
[408365563,1773501032483,-550.0,0.000162,2]
[408365565,1773501032493,-547.47427654,0.00016232,2]
[408365567,1773501032502,-1000.0,0.00016232,2]
[408365569,1773501032512,-1884.7,0.00016233,2]
[408365571,1773501032521,-166.66,0.00016252,2]
[408365573,1773501032530,-1136.12,0.00016261,2]
[408365575,1773501032539,-1190.06,0.000163,2]
[408365577,1773501032549,-153.13141231,0.00016373,2]
[408365579,1773501032561,-774.26,0.0001639,2]
[408365581,1773501032571,-151.0,0.00016396,2]
[408365583,1773501032580,-200.0,0.00016396,2]
[408365586,1773501032593,-151.0,0.00016396,2]
[408365587,1773501032602,-500.0,0.00016396,2]
[408365589,1773501032612,-151.0,0.00016396,2]
[408365591,1773501032621,-500.0,0.00016396,2]
[408365593,1773501032631,-151.0,0.00016396,2]
[408365595,1773501032640,-500.0,0.00016396,2]
[408365597,1773501032649,-151.0,0.00016396,2]
[408365599,1773501032663,-151.0,0.00016396,2]
[408365600,1773501032673,-617.56088742,0.00016396,2]
[408365601,1773501032683,-151.0,0.00016396,2]
[408365602,1773501032692,-500.0,0.00016396,2]
[408365603,1773501032703,-151.0,0.00016396,2]
[408365604,1773501032712,-151.0,0.00016396,2]
[408365605,1773501032722,-500.0,0.00016396,2]
[408365606,1773501032733,-151.0,0.00016396,2]
[408365607,1773501032743,-151.0,0.00016396,2]
[408365608,1773501032754,-500.0,0.00016396,2]
[408365609,1773501032763,-151.0,0.00016396,2]
[408365610,1773501032773,-151.0,0.00016396,2]
[408365611,1773501032782,-151.0,0.00016396,2]
[408365612,1773501032791,-151.0,0.00016396,2]
[408365613,1773501032801,-500.0,0.00016396,2]
[408365614,1773501032810,-500.0,0.00016396,2]
[408365615,1773501032820,-151.0,0.00016396,2]
[408365616,1773501032830,-151.0,0.00016396,2]
[408365617,1773501032839,-500.0,0.00016396,2]
[408365618,1773501032849,-151.0,0.00016396,2]
[408365619,1773501032859,-151.0,0.00016396,2]
[408365620,1773501032868,-151.0,0.00016396,2]
[408365621,1773501032877,-525.90669548,0.00016396,2]
[408365622,1773501032887,-151.0,0.00016396,2]
[408365623,1773501032897,-151.0,0.00016396,2]
[408365624,1773501032907,-151.0,0.00016396,2]
[408365625,1773501032915,-151.0,0.00016396,2]
[408365626,1773501032924,-151.0,0.00016396,2]
[408365627,1773501032933,-151.0,0.00016396,2]